bitfinex-derivatives/quotes_ETHF0:USTF0_20250105
["timestamp","ask_amount","ask_price","bid_price","bid_amount"]
[1736077675734,10.03968112,3613.9,3613.8,3.48459]
[1736077676632,3.26059788,3613.9,3613.8,3.48459]
[1736077677034,2.45023729,3614.1,3613.8,3.2078]
[1736077677237,2.45023729,3614.1,3614.0,0.27677]
[1736077677734,2.45023729,3614.1,3614.0,0.71017]
[1736077678540,0.27677,3614.1,3614.0,0.71017]
[1736077678742,2.17346729,3614.2,3614.0,0.4334]
[1736077678941,2.45022729,3614.2,3614.1,0.27677]
[1736077679142,2.45022729,3614.2,3614.1,0.68897]
[1736077679340,9.3268077,3614.2,3614.1,0.68897]
[1736077682251,9.3268077,3614.2,3614.1,3.89677]
[1736077682941,9.0500477,3614.2,3614.1,3.89677]
[1736077684249,9.3268077,3614.2,3614.1,3.89677]
[1736077685544,9.0500477,3614.2,3614.1,3.89677]
[1736077686549,9.3268077,3614.2,3614.1,3.89677]
[1736077687043,9.0500477,3614.2,3614.1,3.89677]
[1736077687242,6.87658041,3614.2,3614.1,3.89677]
[1736077687652,7.15334041,3614.2,3614.1,3.89677]
[1736077687953,6.87658041,3614.2,3614.1,3.89677]
[1736077689544,2.45022729,3614.3,3614.2,0.27676]
[1736077691251,2.45022729,3614.3,3614.2,3.2078]
[1736077691549,0.27676,3614.3,3614.2,3.48456]
[1736077693247,3.53735788,3614.3,3614.2,3.48456]
[1736077693945,3.53735788,3614.3,3614.2,0.27676]
[1736077697044,3.67588921,3614.3,3614.2,0.27676]
[1736077698552,2.17548434,3614.3,3614.2,4.62431446]
[1736077699554,2.17548434,3614.3,3614.2,7.83211446]
[1736077699754,2.17548434,3614.4,3614.3,0.27675]
[1736077701462,2.17548434,3614.4,3614.3,3.48455]
[1736077701954,2.17548434,3614.4,3614.3,0.27675]
[1736077702257,2.17548434,3614.4,3614.3,3.48455]
[1736077702863,2.17548434,3614.5,3614.4,0.27675]
[1736077703056,2.17548434,3614.5,3614.4,0.70475]
[1736077707364,2.45221434,3614.7,3614.6,0.27673]
[1736077712471,2.17548434,3614.7,3614.6,0.27673]
[1736077714667,0.27673,3614.6,3614.5,3.48453]
[1736077714866,0.71143,3614.6,3614.5,3.48453]
[1736077716365,2.88691434,3614.6,3614.5,3.48453]
[1736077716767,2.61018434,3614.6,3614.5,3.48453]
[1736077718678,2.61018434,3614.6,3614.5,0.27673]
[1736077719375,0.4347,3614.6,3614.5,0.27673]
[1736077726580,0.4347,3614.6,3614.5,4.62428446]
[1736077728480,3.69529788,3614.6,3614.5,0.27673]
[1736077729980,3.53731788,3614.7,3614.5,7.55535446]
[1736077730278,3.53731788,3614.7,3614.6,0.27673]
[1736077732782,0.27672,3614.7,3614.6,0.27673]
[1736077733684,0.27672,3614.7,3614.6,0.69213]
[1736077734181,0.423,3614.8,3614.6,0.4154]
[1736077734385,0.69972,3614.8,3614.7,0.27672]
[1736077734985,0.27672,3614.8,3614.7,0.27672]
[1736077735586,0.7193,3615.0,3614.9,0.27671]
[1736077735880,7.51296747,3615.0,3614.9,0.27671]
[1736077739485,0.27672,3614.9,3614.8,0.27671]
[1736077743497,5.04839797,3614.9,3614.8,0.27671]
[1736077744797,4.71794997,3614.9,3614.8,0.27671]
[1736077745691,0.27672,3614.8,3614.7,4.6313136]
[1736077746901,0.27671,3614.9,3614.8,0.27671]
[1736077748300,0.69193994,3614.9,3614.8,4.6313036]
[1736077749503,0.69193994,3614.9,3614.8,4.3545936]
[1736077749803,0.27672,3614.8,3614.7,7.8391136]
[1736077751000,5.04927479,3614.8,3614.7,7.8391136]
[1736077752201,0.69194994,3614.8,3614.7,7.8391136]
[1736077752602,0.69194994,3614.8,3614.7,7.5623936]
[1736077753203,0.27672,3614.8,3614.7,7.5623936]
[1736077753703,0.27672,3614.8,3614.7,4.3545936]
[1736077753898,0.27672,3614.8,3614.7,7.5623936]
[1736077754801,0.69194994,3614.8,3614.7,7.5623936]
[1736077756298,4.71902909,3614.8,3614.7,3.2078]
[1736077757601,0.69194994,3614.8,3614.7,7.5623936]
[1736077758806,0.27672,3614.8,3614.7,7.9828936]
[1736077760201,0.69194994,3614.8,3614.7,7.9828936]
[1736077762013,0.69194994,3614.8,3614.7,8.2596136]
[1736077762702,5.44556004,3615.0,3614.8,0.70805006]
[1736077763109,7.23573813,3614.9,3614.8,0.70805006]
[1736077764406,16.6981995,3614.9,3614.8,0.70805006]
[1736077770909,17.1274995,3614.9,3614.8,0.70805006]
[1736077772512,11.68193946,3614.9,3614.8,0.70805006]
[1736077783021,18.1631941,3614.9,3614.8,6e-08]
[1736077783218,58.6864841,3614.9,3614.6,3.0313836]
[1736077783412,0.27672,3614.7,3614.6,0.4930436]
[1736077783616,58.6864841,3614.9,3614.4,6.5318904]
[1736077783617,0.27674,3614.5,3614.4,6.5318904]
[1736077783917,7.03493101,3614.5,3614.4,6.5318904]
[1736077784125,52.83493101,3614.5,3614.4,6.5318904]
[1736077784423,52.83493101,3614.5,3614.4,3.9722404]
[1736077784620,52.83493101,3614.5,3614.4,2.2916904]
[1736077784823,52.55819101,3614.5,3613.4,1.34125309]
[1736077785025,0.27681,3613.5,3613.4,1.34125309]
[1736077785525,7.34353944,3613.5,3613.4,1.34125309]
[1736077786322,0.27682,3613.4,3613.3,3.89093]
[1736077786619,7.33829874,3613.4,3613.3,3.89093]
[1736077787514,7.06147874,3613.4,3613.3,3.89093]
[1736077787722,7.33829874,3613.4,3613.3,3.89093]
[1736077788021,10.73817304,3613.4,3613.3,3.89093]
[1736077788921,7.06147874,3613.4,3613.3,3.89093]
[1736077789924,7.33829874,3613.4,3613.3,3.89093]
[1736077790427,9.51016067,3613.4,3613.3,3.89093]
[1736077791229,9.23334067,3613.4,3613.3,3.89093]
[1736077793231,7.06147874,3613.4,3613.3,3.89093]
[1736077793530,7.06147874,3613.4,3613.3,0.68313]
[1736077793926,7.06147874,3613.4,3613.3,3.89093]
[1736077795736,2.17186193,3613.5,3613.4,0.27682]
[1736077795927,2.17186193,3613.6,3613.5,0.27681]
[1736077796426,9.21208135,3613.6,3613.5,0.27681]
[1736077797029,7.04021942,3613.6,3613.5,0.27681]
[1736077802637,2.44865193,3613.8,3613.7,0.2768]
[1736077802941,9.3138412,3613.8,3613.7,0.2768]
[1736077804339,7.14197927,3613.8,3613.7,0.2768]
[1736077804838,6.86518927,3613.8,3613.4,3.2078]
[1736077805139,6.86518927,3613.8,3613.6,0.2768]
[1736077805140,0.27681,3613.7,3613.6,0.2768]
[1736077805740,0.27681,3613.6,3613.5,0.27681]
[1736077806138,0.27681,3613.5,3613.4,3.48462]
[1736077806844,0.27681,3613.5,3613.4,3.2078]
[1736077808642,0.27681,3613.5,3613.4,3.48462]
[1736077810134,0.27681,3613.5,3613.4,3.2078]
[1736077811536,2.17186193,3613.7,3613.4,3.2078]
[1736077811739,0.27681,3613.6,3613.5,0.27681]
[1736077812549,0.27681,3613.5,3613.4,3.48462]
[1736077817540,0.27681,3613.5,3613.4,0.27682]
[1736077817747,0.27681,3613.5,3613.4,3.48462]
[1736077821146,0.27681,3613.5,3613.4,3.2078]
[1736077822343,2.44867193,3613.5,3613.4,3.48462]
[1736077824449,2.44867193,3613.5,3613.4,3.2078]
[1736077824659,0.27681,3613.5,3613.4,3.2078]
[1736077824951,0.27681,3613.5,3613.4,3.48462]
[1736077825851,0.27681,3613.5,3613.4,3.2078]
[1736077826246,3.53824966,3613.5,3613.4,3.2078]
[1736077827246,0.69219586,3613.5,3613.4,3.2078]
[1736077827547,5.04294002,3613.5,3613.4,3.2078]
[1736077828142,0.27682,3613.4,3613.3,3.6141]
[1736077829752,0.27682,3613.4,3613.3,3.89093]
[1736077830147,5.07544005,3613.4,3613.3,3.89093]
[1736077831550,5.07544005,3613.4,3613.3,0.68313]
[1736077831748,5.07544005,3613.4,3613.3,3.89093]
[1736077832456,5.07544005,3613.4,3613.3,3.6141]
[1736077832755,11.99814016,3613.4,3613.3,3.2078]
[1736077833850,0.27686,3612.9,3612.8,4.0532]
[1736077835448,7.29223118,3612.9,3612.8,3.2078]
[1736077835757,17.52920184,3612.9,3612.8,3.2078]
[1736077837053,0.27687,3612.8,3612.7,3.2078]
[1736077837449,7.19161682,3612.8,3612.7,3.2078]
[1736077838053,7.60700268,3612.8,3612.7,3.2078]
[1736077839357,11.95323931,3612.8,3612.7,3.2078]
[1736077842262,0.27689,3612.5,3612.4,0.8792]
[1736077842447,0.27689,3612.5,3612.4,1.1561]
[1736077842757,0.27689,3612.5,3612.4,0.8792]
[1736077842758,7.32149966,3612.5,3612.4,0.8792]
[1736077844260,7.73688552,3612.5,3612.4,0.8792]
[1736077845760,10.99312334,3612.5,3612.4,0.8792]
[1736077848363,10.57773748,3612.5,3612.4,0.8792]
[1736077849663,7.32149966,3612.5,3612.4,0.8792]
[1736077850462,10.57773748,3612.5,3612.4,0.8792]
[1736077853764,7.32149966,3612.5,3612.4,0.8792]
[1736077856663,7.32149966,3612.5,3612.4,1.1561]
[1736077857366,7.32149966,3612.5,3612.4,0.8792]
[1736077857668,9.49006203,3612.5,3612.4,0.8792]
[1736077858559,9.49006203,3612.5,3612.4,1.1561]
[1736077858759,9.49006203,3612.5,3612.4,0.8792]
[1736077860862,9.49006203,3612.5,3612.4,1.1561]
[1736077861063,9.49006203,3612.5,3612.4,0.8792]
[1736077862069,9.21317203,3612.5,3612.4,1.1561]
[1736077862268,2.16856237,3612.5,3612.4,1.1561]
[1736077862472,0.14236237,3612.5,3612.4,1.1561]
[1736077862672,3.25623782,3612.6,3612.5,0.27689]
[1736077864064,4.34623663,3612.8,3612.4,0.8792]
[1736077864065,0.27687,3612.8,3612.7,0.27687]
[1736077864270,0.27687,3612.8,3612.7,3.48467]
[1736077868082,3.25623782,3613.0,3612.7,3.2078]
[1736077868280,4.34623663,3613.2,3612.7,3.2078]
[1736077868576,4.34623663,3613.2,3613.1,3.48465]
[1736077868771,2.99563663,3613.2,3613.1,3.48465]
[1736077870182,3.25947838,3613.6,3613.1,3.2078]
[1736077870381,3.25947838,3613.6,3613.5,0.27682]
[1736077870569,3.25947838,3613.6,3613.5,3.48462]
[1736077871685,3.25947838,3613.8,3613.7,0.2768]
[1736077873283,3.25947838,3613.9,3613.8,0.27679]
[1736077873780,10.17608115,3613.9,3613.8,0.27679]
[1736077875979,6.91660277,3613.9,3613.6,0.4069]
[1736077876180,7.19339277,3613.9,3613.7,0.2768]
[1736077876382,6.91660277,3613.9,3613.6,0.4069]
[1736077876584,0.2768,3613.8,3613.6,0.68371]
[1736077878274,7.32730277,3613.9,3613.6,0.4069]
[1736077878477,0.2768,3613.7,3613.6,0.4069]
[1736077882387,0.2768,3613.7,3613.6,3.6147]
[1736077882784,0.2768,3613.7,3613.6,3.89151]
[1736077883082,0.2768,3613.7,3613.6,3.6147]
[1736077885389,0.2768,3613.7,3613.6,0.4069]
[1736077893489,0.4432,3613.8,3613.5,0.4271]
[1736077893686,0.27681,3613.6,3613.5,0.4271]
[1736077893892,0.27681,3613.6,3613.5,0.70392]
[1736077901394,0.27681,3613.6,3613.5,0.4271]
[1736077901589,0.27682,3613.5,3613.4,3.2078]
[1736077901796,1.14402,3613.5,3613.4,3.2078]
[1736077901984,8.11642943,3613.5,3613.4,3.2078]
[1736077903297,12.00699903,3613.5,3613.4,3.2078]
[1736077904798,7.66466371,3613.5,3613.4,3.2078]
[1736077904997,7.38784371,3613.5,3613.0,0.27685]
[1736077905200,0.27684,3613.2,3613.1,3.2078]
[1736077906699,3.53840039,3613.3,3613.1,3.48465]
[1736077907001,6.9555194,3613.2,3613.1,3.48465]
[1736077907199,7.2323594,3613.2,3613.1,3.48465]
[1736077907899,7.6724594,3613.2,3613.1,3.48465]
[1736077911706,11.34942983,3613.2,3613.1,3.48465]
[1736077912904,11.34942983,3613.2,3613.1,3.2078]
[1736077913106,8.08786944,3613.2,3613.1,3.2078]
[1736077913404,8.08786944,3613.2,3613.1,3.48465]
[1736077913905,8.08786944,3613.2,3613.1,0.27685]
[1736077914105,8.08786944,3613.2,3613.1,3.48465]
[1736077920007,8.08786944,3613.2,3613.1,0.27685]
[1736077920206,8.08786944,3613.2,3613.1,3.48465]
[1736077920513,7.81102944,3613.2,3613.1,3.48465]
[1736077920917,7.37092944,3613.2,3613.1,3.48465]
[1736077921116,7.37092944,3613.2,3613.1,3.89445]
[1736077921610,10.63652647,3613.2,3613.1,3.89445]
[1736077922012,3.68100707,3613.2,3613.1,3.89445]
[1736077922924,5.43835061,3613.6,3613.2,0.27684]
[1736077922925,3.26559703,3613.3,3613.2,0.27684]
[1736077924619,3.26559703,3613.5,3613.2,3.99450172]
[1736077924822,3.26559703,3613.5,3613.4,0.27683]
[1736077925213,3.26559703,3613.5,3613.4,3.48463]
[1736077927820,3.26559703,3613.5,3613.4,0.27683]
[1736077928122,3.26559703,3613.5,3613.4,3.48463]
[1736077934817,3.26559703,3613.6,3613.4,7.83525484]
[1736077935025,3.26559703,3613.6,3613.5,0.70123]
[1736077936230,3.26559703,3613.7,3613.6,0.27682]
[1736077938518,0.41541004,3613.8,3613.7,0.27681]
[1736077938716,0.69221004,3613.8,3613.7,0.27681]
[1736077938921,0.41541004,3613.8,3613.5,0.4244]
[1736077939221,0.86431004,3613.8,3613.4,7.55842484]
[1736077939428,0.27683,3613.5,3613.4,4.35062484]
[1736077939629,4.34233532,3613.6,3613.1,4.35062484]
[1736077939926,0.27685,3613.2,3613.1,4.35062484]
[1736077941219,0.27686,3613.1,3613.0,0.27686]
[1736077941424,0.27687,3613.0,3612.8,3.48467]
[1736077941625,0.72666,3613.1,3612.9,0.27687]
[1736077941822,0.27687,3613.0,3612.8,3.2078]
[1736077942026,0.72666,3613.1,3612.9,0.27686]
[1736077942524,0.72666,3613.1,3613.0,0.27686]
[1736077942927,5.08013987,3613.1,3613.0,0.27686]
[1736077943826,4.80327987,3613.1,3613.0,0.27686]
[1736077944022,4.35347987,3613.1,3613.0,0.27686]
[1736077944328,4.76892878,3613.1,3613.0,0.27686]
[1736077944924,4.76892878,3613.1,3612.8,3.2078]
[1736077945121,0.27687,3613.0,3612.9,0.27687]
[1736077946328,4.63033987,3613.1,3613.0,0.27686]
[1736077947931,0.69230097,3613.1,3613.0,0.27686]
[1736077949431,0.27687,3613.0,3612.9,0.27687]
[1736077950828,0.82184097,3613.1,3612.8,3.2078]
[1736077951030,5.03673987,3613.1,3613.0,0.27686]
[1736077952637,1.09870858,3613.1,3613.0,0.27686]
[1736077955932,1.54500858,3613.1,3613.0,0.27686]
[1736077961229,0.27687,3612.9,3612.8,3.48467]
[1736077961429,0.27687,3613.0,3612.9,0.27686]
[1736077962735,0.27687,3613.0,3612.9,0.70096]
[1736077962947,0.69232445,3613.0,3612.9,0.70096]
[1736077965242,0.69232445,3613.0,3612.9,0.4241]
[1736077965431,0.69232445,3613.0,3612.9,0.70097]
[1736077966538,0.41545445,3613.0,3612.8,3.48468]
[1736077966742,0.69517,3612.9,3612.8,3.48468]
[1736077967944,0.27687,3612.9,3612.8,3.48468]
[1736077968138,0.69517,3612.9,3612.8,3.48468]
[1736077968338,4.37225323,3612.9,3612.8,3.48468]
[1736077969544,1.11062445,3612.9,3612.8,3.48468]
[1736077971240,0.69517,3612.9,3612.8,3.48468]
[1736077971439,0.27687,3612.9,3612.8,3.48468]
[1736077971745,0.69877,3612.9,3612.8,3.48468]
[1736077972636,1.11422445,3612.9,3612.8,3.48468]
[1736077972837,1.11422445,3612.9,3612.8,3.2078]
[1736077974440,1.11422445,3612.9,3612.8,3.48468]
[1736077974742,1.11422445,3612.9,3612.8,0.27688]
[1736077980248,1.11422445,3612.9,3612.8,3.48468]
[1736077980549,0.41545445,3612.9,3612.8,3.48468]
[1736077981147,3.67723365,3612.9,3612.8,3.48468]
[1736077982149,3.67723365,3612.9,3612.8,0.27688]
[1736077982350,3.67723365,3612.9,3612.8,3.48468]
[1736077983750,0.41545445,3612.9,3612.8,3.48468]
[1736077985449,4.35347987,3613.0,3612.9,0.27687]
[1736077986350,4.76893432,3613.0,3612.9,4.62749484]
[1736077987440,4.35347987,3613.0,3612.9,4.62749484]
[1736077987648,4.35347987,3613.1,3613.0,0.27687]
[1736077987847,4.35347987,3613.1,3613.0,0.70807]
[1736077989047,0.4371,3613.5,3613.0,0.70807]
[1736077989048,4.76893432,3613.2,3613.1,0.27686]
[1736077990543,5.04578432,3613.3,3613.2,0.27685]
[1736077992152,0.27685,3613.2,3613.1,3.48465]
[1736077992961,5.04578432,3613.2,3613.1,3.48465]
[1736077993757,5.04578432,3613.2,3613.1,0.27685]
[1736077993962,5.04578432,3613.2,3613.1,3.48465]
[1736077994459,0.69230445,3613.2,3613.1,3.48465]
[1736077995756,0.41545445,3613.2,3613.1,3.48465]
[1736077996160,5.71520061,3613.3,3613.1,3.48465]
[1736077996752,0.27685,3613.2,3613.1,3.48465]
[1736077997967,0.69230445,3613.2,3613.1,3.48465]
[1736077998766,0.69230445,3613.2,3613.1,0.27685]
[1736077998965,0.69230445,3613.2,3613.1,3.48465]
[1736078000569,0.69230445,3613.2,3613.1,0.27685]
[1736078000861,0.69230445,3613.2,3613.1,3.48465]
[1736078002561,0.69230445,3613.2,3613.1,3.2078]
[1736078005763,0.69230445,3613.2,3613.1,4.0454]
[1736078006761,0.69230445,3613.2,3613.1,4.32224]
[1736078006961,0.69230445,3613.2,3613.1,4.0454]
[1736078007669,4.76983188,3613.2,3613.1,4.32224]
[1736078008373,5.04667188,3613.2,3613.1,4.32224]
[1736078008772,4.76983188,3613.2,3613.1,4.32224]
[1736078009171,0.41545445,3613.2,3613.1,5.38824]
[1736078009769,4.35437743,3613.3,3613.1,5.1114]
[1736078009972,4.35437743,3613.3,3613.2,0.27684]
[1736078010469,4.35437743,3613.3,3613.1,4.24821632]
[1736078010667,4.35437743,3613.3,3613.2,0.27684]
[1736078010869,2.1766623,3613.4,3613.3,0.27683]
[1736078011967,0.68357,3614.1,3613.3,3.9965419]
[1736078011968,2.1766623,3613.7,3613.3,3.9965419]
[1736078012168,2.1766623,3613.7,3613.6,3.4846]
[1736078013379,2.1766623,3613.8,3613.6,3.2078]
[1736078013679,2.1766623,3613.8,3613.7,1.6011]
[1736078014774,2.1766623,3613.9,3613.7,1.3243]
[1736078014973,2.1766623,3613.9,3613.8,0.27679]
[1736078015569,2.1766623,3613.9,3613.8,3.48459]
[1736078016566,2.1766623,3613.9,3613.8,0.27679]
[1736078016775,2.1766623,3613.9,3613.8,3.48459]
[1736078021885,2.1766623,3614.1,3614.0,0.27677]
[1736078024488,2.6061623,3614.2,3613.8,3.2078]
[1736078024687,2.6061623,3614.2,3614.1,0.27677]
[1736078033807,2.8829223,3614.2,3614.1,0.27677]
[1736078034304,2.6061623,3614.2,3614.1,0.27677]
[1736078035506,0.4295,3614.2,3614.1,0.27677]
[1736078038509,2.60155018,3614.2,3614.1,0.27677]
[1736078039310,2.87831018,3614.2,3614.1,0.27677]
[1736078040604,3.29321018,3614.2,3614.1,0.27677]
[1736078043808,4.38615346,3614.2,3614.1,0.27677]
[1736078044723,4.10939346,3614.2,3614.1,0.27677]
[1736078045814,3.69449346,3614.2,3614.1,0.27677]
[1736078046514,3.97125346,3614.2,3614.1,0.27677]
[1736078047011,0.70626,3614.2,3614.1,0.27677]
[1736078047810,0.4295,3614.2,3614.1,0.27677]
[1736078048017,3.69449346,3614.2,3614.1,0.27677]
[1736078048616,3.26499346,3614.2,3614.1,0.27677]
[1736078049510,2.17408498,3614.2,3614.1,0.27677]
[1736078051909,3.26499346,3614.3,3614.2,0.27676]
[1736078051910,3.54174346,3614.3,3614.2,0.27676]
[1736078053013,3.54174346,3614.3,3613.8,8.40007175]
[1736078053014,3.26499346,3614.3,3613.8,8.40007175]
[1736078053322,0.71016,3614.2,3614.1,0.27676]
[1736078054323,1.12546659,3614.2,3614.1,0.27676]
[1736078055521,10.85158385,3614.2,3614.1,0.27676]
[1736078057324,0.27677,3614.1,3614.0,0.27677]
[1736078057821,10.57482385,3614.2,3614.0,0.27677]
[1736078058021,0.27677,3614.1,3614.0,0.27677]
[1736078058822,4.97984324,3614.1,3614.0,0.27677]
[1736078060820,4.70307324,3614.1,3614.0,0.27677]
[1736078061316,10.14142385,3614.1,3614.0,0.27677]
[1736078062122,10.41819385,3614.1,3614.0,0.27677]
[1736078070533,10.41819385,3614.1,3613.8,8.40007175]
[1736078070534,0.27678,3614.0,3613.9,0.27678]
[1736078070827,0.27678,3613.9,3613.8,7.55657175]
[1736078071824,0.69818,3613.9,3613.8,7.55657175]
[1736078072631,10.83960385,3613.9,3613.8,3.2078]
[1736078073133,10.56282385,3613.9,3613.6,4.34877175]
[1736078073430,0.2768,3613.7,3613.6,4.62557175]
[1736078074134,5.71515061,3613.7,3613.6,0.2768]
[1736078075331,5.43835061,3613.7,3613.3,8.38757175]
[1736078075527,0.27681,3613.6,3613.5,0.27681]
[1736078077034,4.70307324,3613.7,3613.3,8.38757175]
[1736078077237,4.7702172,3613.6,3613.3,4.0388]
[1736078077636,4.7702172,3613.6,3613.5,0.27681]
[1736078078236,4.35491061,3613.6,3613.5,0.27681]
[1736078079238,4.63172061,3613.6,3613.5,0.27681]
[1736078079431,5.0470272,3613.6,3613.5,0.27681]
[1736078080942,4.7702172,3613.6,3613.5,0.27681]
[1736078082140,0.41530659,3613.6,3613.5,0.27681]
[1736078087851,0.69210659,3613.6,3613.5,0.27681]
[1736078089041,7.19852912,3613.6,3613.3,3.6274]
[1736078089238,7.19852912,3613.6,3613.1,4.34877175]
[1736078089547,0.27684,3613.2,3613.1,4.34877175]
[1736078091947,0.27684,3613.2,3613.0,0.27685]
[1736078091948,0.27684,3613.1,3613.0,0.27685]
[1736078092145,1.14454,3613.1,3613.0,0.27685]
[1736078093245,4.82187164,3613.1,3613.0,0.27685]
[1736078095849,4.54503164,3613.1,3613.0,0.27685]
[1736078096649,4.12972505,3613.1,3613.0,0.27685]
[1736078098451,4.40656505,3613.1,3613.0,0.27685]
[1736078098650,4.12972505,3613.1,3613.0,0.27685]
[1736078099351,4.40656505,3613.1,3613.0,0.27685]
[1736078099549,4.12972505,3613.1,3613.0,0.27685]
[1736078100250,4.40656505,3613.1,3613.0,0.27685]
[1736078100444,4.12972505,3613.1,3613.0,0.27685]
[1736078101145,3.31833335,3613.1,3613.0,0.27685]
[1736078102746,3.04149335,3613.1,3613.0,0.27685]
[1736078110064,2.60469335,3613.1,3613.0,0.27685]
[1736078110462,2.17379335,3613.1,3613.0,0.27685]
[1736078112367,4.36916505,3613.2,3612.9,3.2078]
[1736078112566,0.27685,3613.0,3612.8,0.27686]
[1736078112763,0.27686,3612.9,3612.8,0.27686]
[1736078112963,7.04715953,3612.9,3612.8,0.27686]
[1736078113364,0.27686,3612.9,3612.8,0.27686]
[1736078113574,0.69232094,3612.9,3612.8,0.27686]
[1736078114070,0.41546094,3612.9,3612.8,0.27686]
[1736078114369,0.69232094,3612.9,3612.8,0.27686]
[1736078115671,0.41546094,3612.9,3612.5,4.0523]
[1736078115870,0.71337,3612.8,3612.7,0.27687]
[1736078116676,0.27688,3612.7,3612.6,0.27688]
[1736078116973,0.70008,3612.7,3612.6,0.27688]
[1736078117667,4.37905942,3612.7,3612.6,0.27688]
[1736078121667,4.10217942,3612.7,3612.5,3.6384]
[1736078121977,0.27688,3612.6,3612.5,3.6384]
[1736078122874,0.69234094,3612.6,3612.5,3.6384]
[1736078123071,0.69234094,3612.6,3612.5,3.2078]
[1736078123270,7.74360408,3612.6,3612.5,3.2078]
[1736078124379,0.27691,3612.2,3612.1,0.4201]
[1736078125373,2.45013694,3612.2,3612.1,0.4201]
[1736078126376,2.88263694,3612.2,3612.1,0.4201]
[1736078128776,0.27692,3612.1,3612.0,3.2078]
[1736078129273,0.27694,3611.9,3611.8,0.4264]
[1736078131081,0.27695,3611.7,3611.6,3.2078]
[1736078131274,0.27695,3611.7,3611.6,3.6321]
[1736078131786,0.68375,3611.7,3611.6,3.6321]
[1736078134284,0.68375,3611.7,3611.6,3.90906]
[1736078134285,0.27695,3611.7,3611.6,3.90906]
[1736078134586,0.27695,3611.7,3611.6,3.6321]
[1736078138183,0.27695,3611.7,3611.6,3.90906]
[1736078138382,0.27695,3611.7,3611.6,3.6321]
[1736078141981,0.27695,3611.7,3611.6,3.2078]
[1736078145675,0.27698,3611.3,3611.2,1.56199]
[1736078146288,0.27698,3611.3,3611.2,4.76979]
[1736078147091,0.27698,3611.3,3611.2,4.4928]
[1736078147277,0.27698,3611.3,3611.2,4.76979]
[1736078147677,0.27698,3611.3,3611.2,4.4928]
[1736078148082,0.27698,3611.3,3611.2,4.76979]
[1736078148585,0.27698,3611.3,3611.2,4.4928]
[1736078149484,0.27698,3611.3,3611.2,4.76979]
[1736078150084,2.1716793,3611.7,3611.2,4.4928]
[1736078150279,2.1716793,3611.7,3611.6,3.48476]
[1736078150692,2.1716793,3611.8,3611.6,3.2078]
[1736078150988,2.1716793,3611.8,3611.7,0.69805]
[1736078151290,2.1716793,3611.8,3611.7,1.10935]
[1736078152690,0.27691,3612.2,3612.1,0.27692]
[1736078153191,0.27691,3612.3,3612.2,0.27691]
[1736078153782,2.1716793,3612.5,3612.0,3.2078]
[1736078153987,3.25984041,3612.6,3612.0,3.2078]
[1736078154288,3.25984041,3612.6,3612.5,0.27689]
[1736078154989,3.53672041,3612.6,3612.5,0.27689]
[1736078155893,2.17120542,3612.6,3612.5,0.27689]
[1736078157085,2.17120542,3612.6,3612.5,0.69879]
[1736078158192,2.17120542,3612.6,3612.5,3.90659]
[1736078158892,2.17120542,3612.8,3612.7,0.27688]
[1736078159995,0.27687,3612.8,3612.7,0.27688]
[1736078160995,0.27687,3612.8,3612.6,0.27688]
[1736078161591,0.27687,3612.8,3612.5,3.6297]
[1736078161795,2.44807542,3612.8,3612.6,0.27688]
[1736078161988,2.17120542,3612.8,3612.5,3.6297]
[1736078162190,2.17120542,3612.8,3612.7,0.27688]
[1736078163097,2.17120542,3612.9,3612.8,0.27687]
[1736078164596,2.17120542,3612.9,3612.5,3.6297]
[1736078164597,2.44806542,3613.0,3612.5,3.6297]
[1736078164895,2.44806542,3613.0,3612.9,3.48466]
[1736078165296,2.17120542,3613.0,3612.9,3.48466]
[1736078165501,2.44805542,3613.0,3612.9,3.48466]
[1736078165890,2.17120542,3613.0,3612.9,3.48466]
[1736078166091,2.89795542,3613.1,3612.9,3.2078]
[1736078166287,2.89795542,3613.1,3613.0,0.68205]
[1736078166598,2.89795542,3613.1,3613.0,1.12125]
[1736078167493,2.17120542,3613.1,3613.0,1.12125]
[1736078167695,0.27683,3613.4,3613.1,0.27685]
[1736078167696,2.17120542,3613.2,3613.1,0.27685]
[1736078167896,2.17120542,3613.2,3613.1,0.68205]
[1736078169192,0.69201,3613.5,3613.1,0.4052]
[1736078169397,0.69201,3613.5,3613.4,0.27682]
[1736078169897,7.33925131,3613.5,3613.4,0.27682]
[1736078170901,7.61606131,3613.5,3613.4,0.27682]
[1736078171599,7.33925131,3613.5,3613.4,0.27682]
[1736078172905,7.61606131,3613.5,3613.4,0.27682]
[1736078178994,0.27682,3613.4,3613.3,3.48462]
[1736078179401,7.1953396,3613.4,3613.3,3.48462]
[1736078179800,7.1953396,3613.4,3613.3,0.27682]
[1736078181809,6.9185196,3613.4,3613.3,0.27682]
[1736078183005,7.1953396,3613.4,3613.3,0.27682]
[1736078185907,6.9185196,3613.4,3613.3,0.27682]
[1736078188013,7.32283151,3613.8,3613.7,0.2768]
[1736078188714,0.27679,3613.8,3613.7,0.2768]
[1736078189009,7.05918333,3613.8,3613.7,0.2768]
[1736078189410,0.2768,3613.7,3613.6,3.4846]
[1736078189610,7.05919333,3613.8,3613.7,0.2768]
[1736078189804,0.2768,3613.8,3613.7,0.2768]
[1736078190110,7.15281306,3613.8,3613.7,0.2768]
[1736078190711,7.57201306,3613.8,3613.7,0.2768]
[1736078195911,7.57201306,3613.8,3613.7,0.7058]
[1736078196114,7.29521306,3613.8,3613.7,0.7058]
[1736078196315,7.57200306,3613.8,3613.7,0.7058]
[1736078196910,9.74320848,3613.8,3613.7,0.7058]
[1736078201206,7.57200306,3613.8,3613.7,0.7058]
[1736078202109,7.29521306,3613.8,3613.7,0.7058]
[1736078202315,7.57200306,3613.8,3613.7,0.7058]
[1736078202515,10.83184347,3613.8,3613.7,0.7058]
[1736078205320,11.2471852,3613.8,3613.7,0.7058]
[1736078209425,12.3422554,3613.8,3613.7,0.7058]
[1736078214839,12.0654654,3613.8,3613.7,0.7058]
[1736078216030,12.3422554,3613.8,3613.7,0.7058]
[1736078226944,12.0654654,3613.8,3613.7,0.7058]
[1736078227245,12.3422554,3613.8,3613.7,0.7058]